Cogmind - Beta 16 @@@ ROGUE MODE // 2026.01.08 @ 23:04:12 Player: c4-BRK Result: Core destroyed Performance ------------- Evolutions (4) 2000 Regions Visited (7) 1400 Robots Destroyed (16) 80 Value Destroyed (645) 645 Prototype IDs (8) 160 Alien Tech Used (0) 0 Bonus (1159) 1159 TOTAL SCORE: 5444 Bonus ------- High Alert Combat Kills 18 Follower Combat Kills 868 Registered with UFD 300 Friendly Fire -27 Cogmind --------- Core Integrity 0/850 Matter 227/300 Energy 377/385 System Corruption 4% Temperature Critical (765) Movement Hovering (191) Ox2 Location -6/Lower Caves Parts ------- > --- POWER (2) -------- Light Fission Core Antimatter Reactor > --- PROPULSION (4) --- Improved Airjet Combat Airjet Combat Airjet > --- UTILITY (6) ------ Cryofiber Web Medium Storage Unit Enhanced Optical Array Hardened Medium Armor Plating > --- WEAPON (3) ------- Plasma Cannon > --- INVENTORY (10) --- Antimatter Reactor Combat Airjet Combat Airjet A0-MCA's Component Scanner Peak State ------------ > --- POWER ------------ Light Fission Core Antimatter Reactor > --- PROPULSION ------- Improved Airjet Improved Airjet Combat Airjet Combat Airjet > --- UTILITY ---------- Medium Storage Unit Compact Battery Enhanced Optical Array Improved Particle Charger Hardened Medium Armor Plating Remote Force Field > --- WEAPON ----------- Beamcaster Heavy Beamcaster Heavy Missile Launcher > --- INVENTORY -------- Micro Fission Core Antimatter Reactor Improved Airjet Improved Airjet Combat Airjet Combat Airjet Power Amplifier Hardened Medium Armor Plating A0-MCA's Component Scanner Plasma Cannon [Rating: 75] Favorites ----------- Power Light Fission Core Engine Improved Ion Engine Power Core Light Fission Core Reactor Antimatter Reactor Propulsion Improved Airjet Treads Improved Treads Wheel Wheel Hover Unit Improved Airjet Utility Hardened Medium Armor Plating Device Improved Particle Charger Storage Medium Storage Unit Processor Enhanced Optical Array Protection Hardened Medium Armor Plating Weapon Heavy Beamcaster Energy Gun Heavy Beamcaster Energy Cannon Plasma Cannon Ballistic Gun Assault Rifle Ballistic Cannon Battle Cannon Launcher Heavy Missile Launcher Build | -11 -10 -10 -9 -6 -6 -6 -6 ------- Run | Yrd Mat Sub Scr Fac Was Fac Low Slots Evolved 8 | . . . . 8 . . . Power 1 | . . . . 1 . . . Propulsion 2 | . . . . 2 . . . Utility 4 | . . . . 4 . . . Weapon 1 | . . . . 1 . . . Parts Attached 53 | 8 2 1 4 13 10 10 5 Power 9 | 1 1 . 1 1 3 2 . Engine 4 | 1 1 . 1 1 . . . Core 3 | . . . . . 1 2 . Reactor 2 | . . . . . 2 . . Propulsion 16 | 4 . . . 6 2 4 . Treads 4 | 2 . . . 2 . . . Leg . | . . . . . . . . Wheel 2 | 2 . . . . . . . Hover 10 | . . . . 4 2 4 . Flight . | . . . . . . . . Utility 16 | 1 1 . 2 4 2 3 3 Device 7 | . . . . 2 1 2 2 Storage 4 | 1 . . 1 1 . 1 . Processor 1 | . . . . 1 . . . Hackware . | . . . . . . . . Protection 4 | . 1 . 1 . 1 . 1 Artifact . | . . . . . . . . Weapon 12 | 2 . 1 1 2 3 1 2 Energy Gun 5 | 1 . . 1 . 1 1 1 Energy Cannon 3 | . . . . 1 1 . 1 Ballistic Gun 1 | 1 . . . . . . . Ballistic Cannon 2 | . . 1 . 1 . . . Launcher 1 | . . . . . 1 . . Special Weapon . | . . . . . . . . Impact Weapon . | . . . . . . . . Slashing Weapon . | . . . . . . . . Piercing Weapon . | . . . . . . . . Special Melee Weapon . | . . . . . . . . Unidentified Prototypes 1 | . . . . 1 . . . Parts Lost 16 | . 2 . . . 3 1 10 Power 2 | . 1 . . . 1 . . Propulsion 3 | . . . . . 1 . 2 Utility 6 | . . . . . 1 1 4 Weapon 5 | . 1 . . . . . 4 Highest Loss Streak 4 | . 2 . . . 3 1 4 To Critical Strikes . | . . . . . . . . Average Backups 6 | 2 2 3 5 7 7 8 6 Power 1 | . . . . . . 1 1 Propulsion 2 | 2 2 2 3 4 1 2 2 Utility 1 | . . . 1 1 2 2 2 Weapon . | . . . 1 2 2 1 . Tool/Special . | . . . . . . . . Unused Backups 5 | . . . 3 . . 1 1 Power 1 | . . . 1 . . . . Propulsion 2 | . . . 1 . . 1 . Utility 1 | . . . . . . . 1 Weapon 1 | . . . 1 . . . . Tool/Special . | . . . . . . . . Average Slot Usage (%) 92 | . 79 91 100 91 86 98 87 Engine 6 | . 9 14 14 12 6 . . Core 5 | . . . . . 2 7 12 Wheel 11 | . 28 28 28 3 . . . Hover 15 | . . . . 18 25 26 25 Device 3 | . . . . 5 3 11 4 Storage 12 | . 14 14 14 12 13 13 11 Processor 3 | . . . . . 6 6 6 Protection 9 | . 3 14 14 12 7 6 6 Energy Gun 7 | . 9 . 4 1 3 13 11 Energy Cannon 2 | . . . . 4 4 . 4 Ballistic Gun 4 | . 14 14 9 . . . . Ballistic Cannon 5 | . . 6 14 13 . . . Launcher 1 | . . . . . 5 6 1 Peak Build Rating 75 | 6 6 9 14 53 59 75 74 Average Rating 39 | 3 5 7 10 42 53 70 63 On Entrance 27 | . 6 6 9 14 53 59 74 Avg Prop Armor Cover (%) 6 | 27 . . . 10 . . 3 Naked Turns . | . . . . . . . . Heaviest Build 71 | 14 14 16 31 56 63 71 60 Greatest Support 48 | 20 20 20 20 36 36 48 42 Greatest Overweight (x) 6 | . . . 1 6 1 1 3 Average Overweight (x) . | . . . . 1 . 1 . Largest Inventory Capacity 10 | 8 8 8 10 10 10 10 10 Average Capacity 9 | 6 8 8 8 10 10 10 10 Most Carried 10 | 4 3 6 9 10 10 10 10 Average Carried 6 | 2 2 3 5 7 7 8 6 Final Capacity 10 | 8 8 8 10 10 10 10 10 Final Carried 10 | 2 2 6 9 8 6 10 4 Class Distribution -------------------- 44% | Mutant 13% | Tank 13% | Scavenger-Tank 9% | Derelict-Mutant 9% | Derelict-Tank 7% | Derelict-Skirmisher Dominant Class ---------------- Mutant | -10/Materials Mutant | -10/Subcaves Mutant | -9/Scraptown Derelict-Tank | -6/Factory Mutant | -6/Waste Derelict-Skirmisher | -6/Factory Tank | -6/Lower Caves Resources | -11 -10 -10 -9 -6 -6 -6 -6 ----------- Run | Yrd Mat Sub Scr Fac Was Fac Low Matter Collected 1104 | 179 68 124 40 26 304 158 205 Remotely . | . . . . . . . . Salvage Created 530 | . 160 42 . 23 . 142 163 Parts 34 | . 10 5 . 3 . 9 7 Haulers Intercepted . | . . . . . . . . Recyclers Shooed . | . . . . . . . . Parts Field Recycled . | . . . . . . . . Retrieved Matter . | . . . . . . . . Parts Self-Destructed 6 | . . . . . . . 6 Prevented 1 | . . . . . . . 1 Parts Restored . | . . . . . . . . Kills | -11 -10 -10 -9 -6 -6 -6 -6 ------- Run | Yrd Mat Sub Scr Fac Was Fac Low Combat Hostiles Destroyed 10 | . 4 1 . . . 1 4 Guns 5 | . 1 1 . . . . 3 AOE 4 | . 3 . . . . 1 . Classes Destroyed 8 | . 3 1 . 1 . 2 1 Worker 1 | . 1 . . . . . . Recycler 1 | . . . . . . 1 . Operator 2 | . . . . 2 . . . Watcher 2 | . 2 . . . . . . Swarmer 3 | . . . . . . . 3 Grunt 5 | . 4 . . . . . 1 Protector 1 | . . . . . . 1 . Subdweller 1 | . . 1 . . . . . Best Kill Streak 5 | . 5 1 . 1 . 2 3 Combat Bots Only 3 | . 3 1 . . . 1 3 Max Kills in Single Turn 4 | . 4 1 . 1 . 2 1 Gunslinging . | . . . . . . . . Exploded 3 | . 3 . . . . 1 . Melee . | . . . . . . . . Uniques/NPCs Destroyed . | . . . . . . . . Combat | -11 -10 -10 -9 -6 -6 -6 -6 -------- Run | Yrd Mat Sub Scr Fac Was Fac Low Hostile Shots Fired 130 | . 3 6 . . 3 21 97 Missed 31 | . 3 2 . . . 5 21 Hits 99 | . . 4 . . 3 16 76 Melee 3 | . . . . . 3 . . Projectile 96 | . . 4 . . . 16 76 Critical Strikes 2 | . . . . . 1 . 1 Damage Taken 2766 | . 179 83 . . 122 334 2048 Core 937 | . . 20 . . 33 52 832 Absorbed by Shields 132 | . . . . . . 75 57 Regen/Repaired (Parts) 20 | . . . . . 20 . . Core Remaining (%) 96 | 100 . . 92 . . . . Volleys Fired 52 | . 7 5 . 4 8 7 21 Largest 3 | . 2 2 . 2 3 2 3 Hottest 236 | . 60 53 . 127 204 156 236 Shots Fired 97 | . 14 10 . 8 15 12 38 Gun 54 | . 14 5 . . . 10 25 Cannon 35 | . . 5 . 8 10 . 12 Launcher 8 | . . . . . 5 2 1 Special . | . . . . . . . . Kinetic 21 | . 7 10 . 4 . . . Thermal 47 | . . . . 4 5 10 28 Explosive 8 | . . . . . 5 2 1 Electromagnetic 21 | . 7 . . . 5 . 9 Robot Hit Streak 15 | . 7 10 . 7 15 4 6 Robot Miss Streak 3 | . 1 1 . 1 3 2 3 Penetration Max . | . . . . . . . . Secondary Targets 1 | . 1 . . . . . . Max Gunslinging Chain 1 | . 1 . . . . . . Shots Hit Robots 64 | . 11 8 . 5 12 7 21 Core Hits 31 | . 10 2 . 1 . 12 6 Critical Kills . | . . . . . . . . Critical Parts Destroyed . | . . . . . . . . Critical Strikes 5 | . . . . . 1 2 2 Burn 3 | . . . . . . 2 1 Corrupt 2 | . . . . . 1 . 1 Melee Attacks . | . . . . . . . . Impact . | . . . . . . . . Slashing . | . . . . . . . . Piercing . | . . . . . . . . Sneak Attacks . | . . . . . . . . Combat Hostiles . | . . . . . . . . Follow-up Attacks . | . . . . . . . . Damage Inflicted 2973 | . 589 41 . 156 712 937 538 Guns 836 | . 165 26 . . . 210 435 Cannons 444 | . . 15 . 156 170 . 103 Explosions 1693 | . 424 . . . 542 727 . Melee . | . . . . . . . . Ramming . | . . . . . . . . Kinetic 145 | . 76 41 . 28 . . . Thermal 1338 | . 424 . . 128 160 210 416 Explosive 1269 | . . . . . 542 727 . Electromagnetic 221 | . 89 . . . 10 . 122 Impact . | . . . . . . . . Slashing . | . . . . . . . . Piercing . | . . . . . . . . Highest Corruption 4 | . . . . . . 3 4 Average Corruption 3 | . . . . . . 3 3 Corruption Purged . | . . . . . . . . Corruption Blocked . | . . . . . . . . Effects 39 | . . . . . . 2 37 Message Errors 9 | . . . . . . . 9 Matter Fused 10 | . . . . . . 1 9 Heat Flow Errors 4 | . . . . . . . 4 Energy Discharges 4 | . . . . . . 1 3 Parts Rejected 1 | . . . . . . . 1 Data Loss (minor) 5 | . . . . . . . 5 Data Loss (major) 3 | . . . . . . . 3 Misfires 2 | . . . . . . . 2 Weapon Failures 1 | . . . . . . . 1 Overload Shots . | . . . . . . . . Overflow Damage 142 | . 69 . . 61 . 10 2 Projectiles 63 | . . . . 61 . . 2 Explosions 79 | . 69 . . . . 10 . Melee . | . . . . . . . . Knockbacks 1 | . . . . 1 . . . Impact . | . . . . . . . . Kinetic 1 | . . . . 1 . . . Secondary . | . . . . . . . . Self-Inflicted Damage 170 | . 170 . . . . . . Shots 2 | . 2 . . . . . . Rammed . | . . . . . . . . Targets Rammed . | . . . . . . . . Kicked . | . . . . . . . . Crushed . | . . . . . . . . Highest Temperature 981 | . 25 . . 261 443 399 981 Average Temperature 220 | . 16 . . 125 169 154 284 Received Heat Transfer 369 | . 6 24 . . . . 339 Effects 50 | . . . . . 8 3 39 Shutdowns 14 | . . . . . 2 2 10 Energy Bleed 5 | . . . . . . 1 4 Interference 14 | . . . . . 3 . 11 Matter Decay 4 | . . . . . . . 4 Short Circuit 3 | . . . . . 1 . 2 Damage (minor) 3 | . . . . . 2 . 1 Damage (major) 3 | . . . . . . . 3 Damage (core) 4 | . . . . . . . 4 Siege Activations . | . . . . . . . . Martial Activations . | . . . . . . . . Shielding Activations . | . . . . . . . . Robots Disrupted . | . . . . . . . . Combat Hostiles . | . . . . . . . . Robots Corrupted 1 | . . . . . . . 1 Combat Hostiles 1 | . . . . . . . 1 Parts Fried 3 | . . . . . . . 3 Impact Corruptions . | . . . . . . . . Robots Melted . | . . . . . . . . Combat Hostiles . | . . . . . . . . Parts Melted 1 | . . . . 1 . . . Heat Transferred 1962 | . 350 . . 200 250 444 718 Parts Sabotaged . | . . . . . . . . Parts Stolen . | . . . . . . . . Parts Stripped . | . . . . . . . . Power Chain Reactions 1 | . 1 . . . . . . Alert | -11 -10 -10 -9 -6 -6 -6 -6 ------- Run | Yrd Mat Sub Scr Fac Was Fac Low Maximum Alert Level 4 | . . . . . . 4 . Low Security (%) 71 | 100 100 . . 100 100 15 . Level 1 11 | . . . . . . 34 . Level 2 1 | . . . . . . 4 . Level 3 4 | . . . . . . 13 . Level 4 10 | . . . . . . 32 . Level 5 . | . . . . . . . . High Security . | . . . . . . . . Max Security . | . . . . . . . . Peak Influence 1190 | . 104 . . 20 23 1190 . Initial 3 | . . . . . 3 . . Average 213 | . 35 . . 1 1 625 . Influence Increases 2101 | . 161 . . 35 60 1550 295 Destroy 0b10 Robot/C 640 | . 80 . . . . 480 80 Destroy 0b10 Robot/NC 40 | . 15 . . 10 . 15 . Destroy Leader 124 | . 14 . . . . 90 20 Allied During Kill 557 | . . . . . . 557 . Successful Hack 10 | . . . . 10 . . . Disable Machine 165 | . 30 . . 15 . 120 . Anti-Garrison Action 150 | . . . . . . 150 . Destroy Structure 130 | . 22 . . . 60 48 . Lose Combat Pursuer 285 | . . . . . . 90 195 Influence Decreases 1727 | . 87 74 . 25 70 450 1021 Entered New Map 450 | . . 36 . . 7 . 407 Time Decay 906 | . 67 38 . 25 32 230 514 Lost Part 131 | . 20 . . . 1 10 100 Lost Ally 240 | . . . . . 30 210 . Squads Dispatched 16 | . 2 . . 2 . 12 . Investigation 2 | . 1 . . . . 1 . Extermination 1 | . . . . . . 1 . Reinforcement 6 | . 1 . . 2 . 3 . Assault 3 | . . . . . . 3 . Garrison 4 | . . . . . . 4 . Intercept . | . . . . . . . . Searches Triggered . | . . . . . . . . Construction Impeded . | . . . . . . . . Haulers Reinforced . | . . . . . . . . Active Scanning Responses . | . . . . . . . . Cargo Convoy Interrupts . | . . . . . . . . Stealth | -11 -10 -10 -9 -6 -6 -6 -6 --------- Run | Yrd Mat Sub Scr Fac Was Fac Low Distress Signals . | . . . . . . . . Communications Jammed . | . . . . . . . . Distress Signals . | . . . . . . . . Times Spotted 61 | . 10 1 . 3 6 23 18 Peak Tracking Total 8 | . 3 1 . 1 6 8 4 Tactical Retreats 7 | . . . . . . 2 5 Traps | -11 -10 -10 -9 -6 -6 -6 -6 ------- Run | Yrd Mat Sub Scr Fac Was Fac Low Traps Triggered 3 | . . . . 1 . 1 1 Indirectly . | . . . . . . . . Trap Hack Attempts . | . . . . . . . . Triggered . | . . . . . . . . Disarmed . | . . . . . . . . Reprogrammed . | . . . . . . . . Reused . | . . . . . . . . Traps Extracted . | . . . . . . . . Installed . | . . . . . . . . Triggered . | . . . . . . . . Machines | -11 -10 -10 -9 -6 -6 -6 -6 ---------- Run | Yrd Mat Sub Scr Fac Was Fac Low Machines Disabled 12 | . 2 . . 1 . 9 . Max in Single Turn 2 | . 2 . . 1 . 2 . Garrison Access 1 | . . . . . . 1 . Machines Repaired . | . . . . . . . . Machines Dismantled . | . . . . . . . . Machines Sabotaged . | . . . . . . . . Overloaded Fab Kills . | . . . . . . . . Hacking | -11 -10 -10 -9 -6 -6 -6 -6 --------- Run | Yrd Mat Sub Scr Fac Was Fac Low Machines Accessed 5 | . . . 2 1 . 1 1 Terminals 1 | . . . . 1 . . . Fabricators . | . . . . . . . . Repair Stations . | . . . . . . . . Recycling Units . | . . . . . . . . Scanalyzers . | . . . . . . . . Garrison Access 1 | . . . . . . 1 . Total Hacks 10 | . . . 5 1 . 3 1 Successful 7 | . . . 5 1 . . 1 Failed 3 | . . . . . . 3 . Catastrophic . | . . . . . . . . Database Lockouts . | . . . . . . . . Manual . | . . . . . . . . Terminals 1 | . . . . 1 . . . Fabricators . | . . . . . . . . Repair Stations . | . . . . . . . . Recycling Units . | . . . . . . . . Scanalyzers . | . . . . . . . . Garrison Access 3 | . . . . . . 3 . Terminal Hacks 7 | . . . 5 1 . . 1 Record 5 | . . . 4 1 . . . Open Door 1 | . . . . . . . 1 Proto ID Catalog 1 | . . . 1 . . . . Fabricator Hacks . | . . . . . . . . Repair Station Hacks . | . . . . . . . . Recycling Unit Hacks . | . . . . . . . . Scanalyzer . | . . . . . . . . Garrison Access Hacks . | . . . . . . . . Unauthorized Hacks . | . . . . . . . . Terminals . | . . . . . . . . Fabricators . | . . . . . . . . Repair Stations . | . . . . . . . . Recycling Units . | . . . . . . . . Scanalyzers . | . . . . . . . . Garrison Access . | . . . . . . . . Data Cores Recovered . | . . . . . . . . Used . | . . . . . . . . Hacking Detections 1 | . . . . . . 1 . Full Trace Events 1 | . . . . . . 1 . Feedback Events . | . . . . . . . . Feedback Blocked . | . . . . . . . . Robot Schematics Acquired . | . . . . . . . . Robots Built . | . . . . . . . . Authchips . | . . . . . . . . Time . | . . . . . . . . Total Robot Build Rating . | . . . . . . . . Part Schematics Acquired . | . . . . . . . . Parts Built . | . . . . . . . . Authchips . | . . . . . . . . Time . | . . . . . . . . Total Part Build Rating . | . . . . . . . . Part Studies Acquired . | . . . . . . . . Parts Repaired . | . . . . . . . . Time . | . . . . . . . . Parts Recycled . | . . . . . . . . Recycled Matter . | . . . . . . . . Retrieved Matter . | . . . . . . . . Retrieved Components . | . . . . . . . . Parts Scanalyzed . | . . . . . . . . Part Schematics Acquired . | . . . . . . . . Parts Damaged . | . . . . . . . . Bothacking | -11 -10 -10 -9 -6 -6 -6 -6 ------------ Run | Yrd Mat Sub Scr Fac Was Fac Low Used RIF Installer . | . . . . . . . . Robots Hacked . | . . . . . . . . Non-combat . | . . . . . . . . Combat . | . . . . . . . . Robot Hacks Applied . | . . . . . . . . Relay Couplers Released 2 | . . . . . . 2 . Machine Destruction 2 | . . . . . . 2 . Fabnet Peak Effective % . | . . . . . . . . Robots Rewired . | . . . . . . . . Allies Hacked . | . . . . . . . . Hacks Repelled . | . . . . . . . . Allies | -11 -10 -10 -9 -6 -6 -6 -6 -------- Run | Yrd Mat Sub Scr Fac Was Fac Low Total Allies 19 | . . . . . 19 . . Largest Group 18 | . . . . . 18 12 . Highest-Rated Group 638 | . . . . . 638 457 . Highest-Rated Ally 50 | . . . . . 50 50 . Total Orders . | . . . . . . . . Ally Attacks 166 | . . . . . 87 79 . Total Damage 7408 | . . . . . 4226 3182 . Kills 36 | . . . . . 11 25 . Allies Corrupted 1 | . . . . . . 1 . Allies Melted . | . . . . . . . . Intel | -11 -10 -10 -9 -6 -6 -6 -6 ------- Run | Yrd Mat Sub Scr Fac Was Fac Low Active Infowar (turns) 2346 | . . . . 249 442 488 1167 Optics 2136 | . . . . 39 442 488 1167 Sensors 771 | . . . . 249 173 349 . Robot Analysis Total . | . . . . . . . . Derelict Logs Recovered 3 | . . 1 2 . . . . Drone Launches . | . . . . . . . . Drone Recoveries . | . . . . . . . . Exploration | -11 -10 -10 -9 -6 -6 -6 -6 ------------- Run | Yrd Mat Sub Scr Fac Was Fac Low Turns Passed 4460 | 56 181 422 1163 262 481 488 1407 Spaces Moved 3757 | 47 117 415 1216 213 376 368 1005 Core 7 | 7 . . . . . . . Treads . | . . . . . . . . Legs . | . . . . . . . . Wheels 1834 | 40 117 415 1216 46 . . . Hover 1916 | . . . . 167 376 368 1005 Flight . | . . . . . . . . Fastest Speed 38 | 50 80 80 80 98 38 98 54 Average Speed 95 | 75 80 80 87 103 90 111 107 Slowest Speed 440 | 80 80 80 95 440 106 141 226 Overloaded Moves . | . . . . . . . . Propulsion Burnouts . | . . . . . . . . Robots Hopped . | . . . . . . . . Potential Cave-ins . | . . . . . . . . Cave-ins Triggered . | . . . . . . . . Exploration Rate (%) 40 | 3 42 19 77 6 96 14 68 Regions Visited 7 Branch Regions 3 Pre-discovered Areas 2 | . . 1 1 . . . . Known Exits Taken . | . . . . . . . . Unknown Exits Taken 5 | 1 1 1 1 . . 1 . Scrap Searched 13 | . . 3 7 . . . 3 Spaces Dug . | . . . . . . . . Terrain Destroyed 119 | . 29 . . . 68 7 15 Melee . | . . . . . . . . Projectile 1 | . . . . . . . 1 AOE 118 | . 29 . . . 68 7 14 Terrain Rammed . | . . . . . . . . Walls Destroyed . | . . . . . . . . Machines Disabled . | . . . . . . . . Actions | -11 -10 -10 -9 -6 -6 -6 -6 --------- Run | Yrd Mat Sub Scr Fac Was Fac Low Total 4556 | 65 190 494 1317 249 503 433 1305 Wait 601 | 2 63 69 81 . 94 25 267 Move 3751 | 46 116 414 1215 213 375 367 1005 Hop . | . . . . . . . . Pick Up 60 | 8 2 5 10 11 8 14 2 Fast Attach . | . . . . . . . . Attach 39 | 6 2 1 1 11 7 3 8 Detach 5 | . . . . 3 2 . . Swap 22 | 3 . . 3 3 4 9 . Drop 26 | . . . 7 4 5 8 2 Fire 52 | . 7 5 . 4 8 7 21 Melee . | . . . . . . . . Ram . | . . . . . . . . Kick . | . . . . . . . . Crush . | . . . . . . . . Escape Stasis . | . . . . . . . . Rewire . | . . . . . . . . Trap . | . . . . . . . . Miscellaneous . | . . . . . . . . Route ------- -11/Scrapyard -10/Materials (discovered 2 exits: [*Min] / [*Sub]) -10/Subcaves (discovered 2 exits: [*Mat] / *Scr) -9/Scraptown -6/Factory -6/Waste -6/Factory -6/Lower Caves History --------- Turn | Location | Event 25 | -11/Scrapyard | Discovered new exit (range 16) 57 | -11/Scrapyard | Entered Materials 58 | -10/Materials | Met a group of wandering Federalists 140 | -10/Materials | Lost 5 allies 192 | -10/Materials | Discovered new exit (range 7) 232 | -10/Materials | Discovered new exit (range 9) 238 | -10/Materials | Entered Subcaves 239 | -10/Subcaves | Continued accompanying wandering Federalists (1) 239 | -10/Subcaves | Approached by a straggling Scientist 295 | -10/Subcaves | Discovered new exit (range 3) 308 | -10/Subcaves | Build established: Mutant 329 | -10/Subcaves | Shifting Twisted Machinery released Battle Cannon 521 | -10/Subcaves | Learned location of Storage (-9) 660 | -10/Subcaves | Entered Scraptown 733 | -9/Scraptown | Heard Great Nut preacher, LISTEN AND RECITE! 790 | -9/Scraptown | Scanned Subdweller tech in exchange for log data 794 | -9/Scraptown | Learned location of Extension (-4) 795 | -9/Scraptown | Learned location of 2 exits from Proximity Caves 831 | -9/Scraptown | Visited Shadow of the Wyrm 867 | -9/Scraptown | Visited Spacefarers 916 | -9/Scraptown | Visited SPCMW 946 | -9/Scraptown | Visited Awakened 960 | -9/Scraptown | Visited Comm Corps 1016 | -9/Scraptown | Visited TADAMA 1044 | -9/Scraptown | Visited Science Testing Area 1278 | -9/Scraptown | Visited UFD Registry 1278 | -9/Scraptown | Registered with UFD as "Flexibay" 1314 | -9/Scraptown | Visited Junk Repository 1349 | -9/Scraptown | Visited Curators Association 1383 | -9/Scraptown | Visited Chapter 10 1423 | -9/Scraptown | Visited DA-N13 Charitable Foundation 1432 | -9/Scraptown | Found DCF Scrap (30 items) 1478 | -9/Scraptown | Visited A0-MCA Data Center 1484 | -9/Scraptown | Given an A- rating by A0-MCA 1488 | -9/Scraptown | Found A0-MCA's Component Scanner 1504 | -9/Scraptown | Visited Science Guys 1550 | -9/Scraptown | Visited Abandonware Association 1562 | -9/Scraptown | Learned abandonware demo "TRNCOAT.EXE" 1740 | -9/Scraptown | Build established: Derelict-Mutant 1756 | -9/Scraptown | Visited Modified Component R&D 1816 | -9/Scraptown | Discovered new exit (range 5) 1823 | -9/Scraptown | Entered Factory 1823 | -6/Factory | Evolved 8 slots: Power x1, Propulsion x2, Utility x4, Weapon x1 2085 | -6/Factory | Sucked down chute 2085 | -6/Factory | Entered Waste 2086 | -6/Waste | Met a frightened Derelict 2090 | -6/Waste | Spotted C-40 Crusher 2136 | -6/Waste | Build established: Derelict-Tank 2201 | -6/Waste | Spotted C-40 Crusher 2202 | -6/Waste | Spotted C-40 Crusher 2214 | -6/Waste | Spotted C-40 Crusher 2217 | -6/Waste | Spotted C-40 Crusher 2231 | -6/Waste | Spotted C-40 Crusher 2236 | -6/Waste | Crushed by Compactor (1 part destroyed, 2 dropped) 2239 | -6/Waste | Crushed by Compactor (1 part destroyed, 1 dropped) 2242 | -6/Waste | Crushed by Compactor (1 part destroyed, 2 dropped) 2259 | -6/Waste | Warlord forces began an assault 2268 | -6/Waste | Allies destroyed C-40 Crusher 2273 | -6/Waste | Lost 3 parts (1p1n1u) 2273 | -6/Waste | Allies destroyed C-40 Crusher 2528 | -6/Waste | Discovered new exit (range 12) 2566 | -6/Waste | Entered Factory 2566 | -6/Factory | Accompanied by 12 allies 2582 | -6/Factory | Garrison activated, responded to threat 2859 | -6/Factory | Build established: Derelict-Skirmisher 2916 | -6/Factory | First assault squad dispatched 2974 | -6/Factory | Discovered new exit (range 9) 3000 | -6/Factory | Lost 9 allies 3054 | -6/Factory | Entered Lower Caves 3209 | -6/Lower Caves | Build established: Scavenger-Tank 3498 | -6/Lower Caves | Spotted B-75 Beast 3545 | -6/Lower Caves | Lost 4 parts (1n3u) 3633 | -6/Lower Caves | Encountered a Warlord checkpoint 3805 | -6/Lower Caves | Build established: Tank 4092 | -6/Lower Caves | Core integrity fell below 50% 4457 | -6/Lower Caves | Core integrity fell below 20% 4462 | -6/Lower Caves | Core destroyed Last Messages --------------- G-50 Soldier overheating. Overheating: System interference. Hpw. Shock Rifle temporarily disabled. Power failure, Antimatter Reactor shutdown. Power failure, Lgt. Fission Core shutdown. Overheating: Imp. Airjet damaged (-5). System corrupted: Component data lost. G-50 Soldier overheating. Hpw. Shock Rifle destroyed. Cmb. Airjet broken. Overheating: Short circuit. G-50 Soldier heat short circuits Carbon-fiber Leg. G-50 Soldier overheating. Power failure, Antimatter Reactor shutdown. Overheating: Core damaged (-153). Imp. Airjet destroyed. Power failure, Lgt. Fission Core shutdown. Power failure, Antimatter Reactor shutdown. Overheating: Core damaged (-144). Map ----- +----------------------------------------------------+ | ???## ###???# ##??# #????? ##?## | | ????## ### #??# ##?# ## ## ##?????? #??# | | ?????#=!### ### #####?# ##"#????????# #?## | | ?????# %## ##?## #??#?????????# ### | | ??#### !# ### #??????#####?# ## | | ?## #?????## ### | | ## #???### ## | | # #### ##??## ### | | ## ##??## #???# ##?## | | ## #### ##???## ##??# ##### ##???? | | ##?# #??### ##???## #### ##???#######?? | | ???# ##????## ####?# #??????## #?? | | ??? ???????#### ### ##?????## ##?? | | ??? #?????##??## ## #######??????# # #?? | | ?? ##?????## ## #######????????????# #?? | | ??#???????# ##??????????####????# ##?? | | ??????????# ###??????????## ##???## #### | | ?????????# ## #??????????### #???### # | | ?????????# #?# #??????????# ##### | | ?????????##### ### #####??????# # # # | | ?????????????## ##?????# ## # | | ??????????????## #??#### ### #### # | | ??????????????## #??# #### #?# # | | ?????????????## ##### #### # #?# # | | ????????????## #### * = ## #?# ##?# | | ????????????# ##??#@### ## #?# ##?# | | ?? ## ##??# #?### ## ### #?## | | ?# ##?#%#???# ## # #### | | ? ??## ###g##### ## ### # | | ???# #### ######?# # | | ????## #??# #??????## # | | ??????#################??# #???????# # | | ?????????????????????????# #???????# # | | ? ??????????????????????????# ???????# # | | ? ???????????????????????????# #?????? # | | ?? ???????????????????????????# #???? # | | ?? ????????????????????????????# #??# ## | | ????????????????????????????????????# ? #? | | ???????????????????????????????????? #? | | ????????????????????????????????????# ? | | ????????????????????????????????????# ? | | ???????????????????????????????????# ? | | ??????????????????????????????????# ? | | ??????????????????????????????????## $ ####? | | ???????????????????????????????????## #????? | | ????????????????????????????????????# ?????? | | ????????????????????????????????????# ?????? | | ????????????????????????????????????########?????? | | ?????????????????????????????????????????????????? | | ?????????????????????????????????????????????????? | +----------------------------------------------------+ Best States ------------- Heat Dissipation 51 Energy Generation 39 Energy Capacity 585 Matter Stores 300 Matter Capacity 300 Sight Range 22 Robot Scan Range 16 Terrain Scan Density 10 Power Amplification 20 Base Temperature (-) 100 Armor Coverage 375 Evasion (%) 57 Particle Charging 20 Item Schematics ----------------- None Robot Schematics ------------------ None Fabricated ------------ Nothing Repaired ---------- Nothing Studied --------- None Alien Tech Used ----------------- None Achievements -------------- Civilization 2243 Overwhelming Strength In Numbers Challenges ------------ None Game ------ Seed CoolingExplosiveScanner Manual? 0 Play Time 00:41:38 Cumulative 30.3 hours Start 2026.01.06 @ 22:29:50 End 2026.01.08 @ 23:04:12 Sessions 3 Manual Loads 0 Difficulty Rogue Special Mode None Game No. 58 Rogue 37 Adventurer 21 Explorer 0 Win Type - Total 1 Types 0/0/0/0/0/0/0/1/0/0 Lore% 54 Gallery% 33 Achievement% 24 Wizard Run 0 Options --------- Layout 1 ASCII 0 Keyboard 0 Movement Mouse Keybinds 0 Fullscreen 2 Font 24/Smallcaps Map View 50x35 Zoom Use 0% Tactical HUD 0 Map Filters NONE Filters NONE Steam 1 RUN: 9b5f159b-80e9-44ff-9b3d-90ca491bf5f9